bitfinex/quotes_SOLUSD_20241216
["timestamp","ask_amount","ask_price","bid_price","bid_amount"]
[1734344060856,0.46370596,217.41,217.35,23.776884]
[1734344061268,0.46370596,217.41,217.34,23.902374]
[1734344061472,0.46370596,217.41,217.33,24.027864]
[1734344062092,0.46370596,217.41,217.33,23.902374]
[1734344062260,0.46370596,217.41,217.32,23.776884]
[1734344062593,0.46370596,217.41,217.33,0.12549]
[1734344063788,0.46370596,217.41,217.29,0.547218]
[1734344063789,20.0,217.39,217.29,0.547218]
[1734344063988,1.39080596,217.41,217.29,0.547218]
[1734344063989,20.0,217.37,217.29,0.547218]
[1734344064195,0.46370596,217.36,217.29,0.547218]
[1734344065590,0.46370596,217.36,217.29,24.324102]
[1734344068876,0.46370596,217.36,217.29,0.547218]
[1734344069465,9.2017,217.35,217.29,0.547218]
[1734344069685,0.46370596,217.34,217.29,0.547218]
[1734344071082,20.0,217.32,217.29,0.547218]
[1734344077578,7.5378927,217.4,217.29,0.547218]
[1734344077796,20.0,217.37,217.29,0.547218]
[1734344077985,20.46370596,217.36,217.29,0.547218]
[1734344078909,9.2017,217.35,217.29,0.547218]
[1734344079071,0.46370596,217.34,217.29,0.547218]
[1734344080469,9.2025,217.33,217.29,0.547218]
[1734344080669,0.46370596,217.32,217.29,0.547218]
[1734344081712,9.2034,217.31,217.29,0.547218]
[1734344081881,0.46370596,217.3,217.29,0.547218]
[1734344082405,9.2034,217.31,217.29,0.547218]
[1734344082576,0.46370596,217.34,217.29,0.547218]
[1734344083580,9.2025,217.33,217.29,0.547218]
[1734344086783,0.46370596,217.35,217.29,0.547218]
[1734344086979,9.2013,217.37,217.3,23.902374]
[1734344087307,9.2013,217.37,217.3,31.93801675]
[1734344087479,0.46370596,217.4,217.31,0.12549]
[1734344088585,20.0,217.38,217.31,0.12549]
[1734344089703,0.46370596,217.45,217.38,23.902374]
[1734344089909,0.46370596,217.47,217.38,23.902374]
[1734344090199,0.46370596,217.47,217.38,0.12549]
[1734344090583,0.46370596,217.47,217.37,0.12549]
[1734344090979,9.1966,217.48,217.4,0.12549]
[1734344091186,0.9271,217.51,217.41,0.12549]
[1734344091187,0.46370596,217.49,217.41,0.12549]
[1734344091404,0.46370596,217.49,217.42,0.12549]
[1734344091614,0.46370596,217.51,217.42,0.12549]
[1734344091817,0.46370596,217.51,217.38,1.5064]
[1734344092115,0.46370596,217.51,217.39,23.776884]
[1734344092485,20.0,217.49,217.4,0.12549]
[1734344092739,0.46370596,217.48,217.4,0.12549]
[1734344092905,9.66020596,217.48,217.4,0.12549]
[1734344093209,20.0,217.45,217.33,1.5064]
[1734344093427,0.46370596,217.44,217.33,1.5064]
[1734344094006,0.12549,217.43,217.29,0.547218]
[1734344094333,20.0,217.41,217.29,0.547218]
[1734344094611,0.46370596,217.4,217.29,0.547218]
[1734344095109,9.2,217.39,217.29,24.324102]
[1734344095408,0.46370596,217.38,217.29,24.324102]
[1734344096094,9.2009,217.37,217.29,0.547218]
[1734344096414,0.46370596,217.36,217.29,0.547218]
[1734344100013,9.2,217.39,217.31,8.03564275]
[1734344100321,0.46370596,217.38,217.31,8.03564275]
[1734344100683,0.46370596,217.38,217.32,0.12549]
[1734344100901,20.46370596,217.4,217.32,31.93801675]
[1734344101301,0.46370596,217.42,217.34,23.776884]
[1734344102291,0.31770596,217.42,217.34,23.776884]
[1734344102488,10.1241,217.47,217.37,23.902374]
[1734344102692,9.51470596,217.47,217.39,23.902374]
[1734344102908,9.51470596,217.47,217.39,31.93801675]
[1734344103086,9.51470596,217.47,217.39,23.902374]
[1734344103487,9.51470596,217.47,217.38,24.027864]
[1734344103912,9.51470596,217.47,217.38,23.902374]
[1734344104125,9.51470596,217.47,217.39,23.776884]
[1734344104304,9.51470596,217.47,217.39,0.12549]
[1734344104500,9.51470596,217.47,217.38,8.03564275]
[1734344104690,20.0,217.44,217.34,8.03564275]
[1734344104898,0.31770596,217.43,217.29,6.716718]
[1734344105110,0.31770596,217.43,217.34,8.03564275]
[1734344105291,0.31770596,217.43,217.35,8.03564275]
[1734344106002,0.31770596,217.43,217.36,8.03564275]
[1734344106319,0.31770596,217.46,217.39,0.12549]
[1734344106614,9.197,217.47,217.39,0.12549]
[1734344106615,9.51470596,217.47,217.39,0.12549]
[1734344106825,9.51470596,217.47,217.39,8.16113275]
[1734344107490,9.51470596,217.47,217.3,0.68984765]
[1734344107491,9.51470596,217.47,217.36,8.03564275]
[1734344108316,20.0,217.44,217.33,8.03564275]
[1734344108618,0.31770596,217.43,217.32,8.03564275]
[1734344108811,9.1987,217.42,217.33,0.12549]
[1734344108997,0.31770596,217.41,217.33,0.12549]
[1734344109386,0.31770596,217.41,217.33,8.03564275]
[1734344109809,0.31770596,217.41,217.3,0.12549]
[1734344110001,9.1996,217.4,217.31,8.03564275]
[1734344110207,0.31770596,217.39,217.32,0.12549]
[1734344110615,0.31770596,217.39,217.31,8.03564275]
[1734344110808,0.31770596,217.39,217.29,0.547218]
[1734344110997,0.31770596,217.39,217.29,8.58286075]
[1734344111207,0.31770596,217.39,217.3,8.03564275]
[1734344111503,9.1996,217.4,217.33,8.03564275]
[1734344111703,0.31770596,217.39,217.33,8.03564275]
[1734344111909,9.1996,217.4,217.33,8.03564275]
[1734344112298,0.31770596,217.39,217.33,8.03564275]
[1734344112619,9.51600596,217.43,217.33,8.03564275]
[1734344112795,9.51600596,217.43,217.34,8.03564275]
[1734344113193,9.51600596,217.43,217.35,8.16113275]
[1734344114113,9.51600596,217.43,217.35,12.56043334]
[1734344115005,9.51600596,217.43,217.31,12.56043334]
[1734344115715,20.0,217.4,217.29,13.10765134]
[1734344115893,20.31770596,217.39,217.29,13.10765134]
[1734344116099,20.31770596,217.39,217.29,0.547218]
[1734344116295,26.58500596,217.39,217.29,0.547218]
[1734344116725,20.0,217.38,217.29,0.547218]
[1734344116901,0.31770596,217.37,217.29,0.547218]
[1734344117225,9.2013,217.36,217.29,0.547218]
[1734344117391,0.31770596,217.35,217.29,0.547218]
[1734344118608,9.2021,217.34,217.29,0.547218]
[1734344118920,0.31770596,217.33,217.29,0.547218]
[1734344130259,0.31770596,217.34,217.29,0.547218]
[1734344132149,0.31770596,217.35,217.29,0.547218]
[1734344132955,6.2673,217.39,217.29,0.547218]
[1734344132956,0.31770596,217.38,217.3,12.56043334]
[1734344134226,0.31770596,217.38,217.31,12.56043334]
[1734344134451,9.2,217.39,217.31,12.56043334]
[1734344135341,0.31770596,217.38,217.31,12.56043334]
[1734344136054,0.31770596,217.42,217.33,8.04112282]
[1734344136849,20.0,217.4,217.31,0.69006354]
[1734344137050,0.12549,217.38,217.29,0.547218]
[1734344137250,0.25098,217.36,217.29,0.547218]
[1734344137430,20.25098,217.38,217.29,0.547218]
[1734344137431,6.76520596,217.35,217.29,0.547218]
[1734344137944,9.2025,217.33,217.29,0.547218]
[1734344138142,6.76520596,217.35,217.29,0.547218]
[1734344138448,28.0232876,217.38,217.29,0.547218]
[1734344138449,20.31770596,217.37,217.29,0.547218]
[1734344138827,20.31770596,217.37,217.29,8.58834082]
[1734344139241,29.51900596,217.37,217.29,8.58834082]
[1734344139837,9.51900596,217.37,217.3,8.04112282]
[1734344140553,0.31770596,217.39,217.31,8.04112282]
[1734344141550,0.31770596,217.39,217.32,8.04112282]
[1734344141754,9.51720596,217.41,217.33,8.04112282]
[1734344141960,9.51720596,217.41,217.34,12.56250363]
[1734344142759,0.31770596,217.43,217.35,12.56250363]
[1734344145064,0.31770596,217.43,217.34,12.56250363]
[1734344146431,9.1987,217.42,217.34,12.56250363]
[1734344146757,0.31770596,217.41,217.34,12.56250363]
[1734344147635,9.1987,217.42,217.35,12.56250363]
[1734344148031,0.31770596,217.41,217.33,1.5625]
[1734344148245,0.31770596,217.41,217.34,12.56250363]
[1734344148636,0.31770596,217.41,217.35,12.56250363]
[1734344148867,20.0,217.41,217.35,12.56250363]
[1734344149157,0.31770596,217.43,217.36,12.56250363]
[1734344150555,6.2639,217.44,217.37,12.56250363]
[1734344151364,0.31770596,217.45,217.38,12.56250363]
[1734344152037,0.31770596,217.45,217.36,12.56250363]
[1734344152363,0.31770596,217.45,217.35,12.56250363]
[1734344152570,20.31770596,217.45,217.35,12.56250363]
[1734344152867,9.1979,217.44,217.34,12.56250363]
[1734344153159,0.31770596,217.43,217.34,12.56250363]
[1734344153371,0.31770596,217.43,217.35,12.56250363]
[1734344153545,0.31770596,217.43,217.36,12.56250363]
[1734344153739,0.31770596,217.43,217.33,2.25250219]
[1734344153740,17.53749356,217.48,217.38,12.56250363]
[1734344154055,10.44130596,217.48,217.38,12.56250363]
[1734344154559,10.44130596,217.48,217.37,12.56250363]
[1734344155165,10.44130596,217.48,217.39,12.56250363]
[1734344155364,9.51420596,217.48,217.4,12.56250363]
[1734344155573,9.51420596,217.48,217.41,12.56250363]
[1734344155767,0.31770596,217.48,217.41,12.56250363]
[1734344155967,6.55670596,217.5,217.41,12.56250363]
[1734344156542,6.55670596,217.5,217.42,12.56250363]
[1734344156955,9.1949,217.52,217.37,0.689749]
[1734344156956,9.51260596,217.52,217.43,12.56250363]
[1734344157267,9.51260596,217.52,217.42,12.56250363]
[1734344157679,9.51260596,217.52,217.29,7.046718]
[1734344157680,0.25098,217.47,217.29,7.046718]
[1734344157965,0.31770596,217.46,217.33,14.12500363]
[1734344158143,20.0,217.44,217.33,1.5625]
[1734344158470,0.31770596,217.43,217.33,14.12500363]
[1734344158769,9.1987,217.42,217.33,1.5625]
[1734344159065,0.31770596,217.41,217.31,12.56250363]
[1734344159840,9.1996,217.4,217.31,12.56250363]
[1734344160157,0.31770596,217.39,217.31,12.56250363]
[1734344161339,9.2004,217.38,217.29,13.10972163]
[1734344161546,0.31770596,217.37,217.29,13.10972163]
[1734344162149,0.31770596,217.37,217.3,12.56250363]
[1734344163771,9.51810596,217.38,217.3,12.56250363]
[1734344163954,9.51810596,217.38,217.29,0.547218]
[1734344164783,9.51810596,217.38,217.29,13.10972163]
[1734344165096,9.2004,217.38,217.31,12.56250363]
[1734344166602,9.51810596,217.38,217.3,12.56250363]
[1734344169601,9.51810596,217.38,217.29,13.10972163]
[1734344169806,9.51810596,217.38,217.29,0.547218]
[1734344171706,9.51810596,217.38,217.3,8.04459985]
[1734344171872,26.0396,217.39,217.31,8.04459985]
[1734344172076,6.0396,217.39,217.31,8.04459985]
[1734344173202,6.0396,217.39,217.29,0.547218]
[1734344173203,0.31770596,217.38,217.29,0.547218]
[1734344173902,0.9271,217.35,217.29,0.547218]
[1734344174200,0.31770596,217.34,217.29,0.547218]
[1734344174395,20.0,217.33,217.29,0.547218]
[1734344174606,0.31770596,217.32,217.29,0.547218]
[1734344175104,9.52090596,217.32,217.29,0.547218]
[1734344179592,20.0,217.3,217.29,0.547218]
[1734344181696,9.52090596,217.32,217.29,0.547218]
[1734344183311,20.0,217.3,217.29,0.547218]
[1734344184314,20.0,217.3,217.2,5.0]
[1734344184635,20.0,217.26,217.2,5.0]
[1734344184933,0.31770596,217.25,217.2,5.0]
[1734344185296,20.0,217.21,217.2,0.5721]
[1734344186037,0.31770596,217.27,217.2,0.5721]
[1734344186192,20.0,217.25,217.2,0.0721]
[1734344186396,0.31770596,217.24,217.2,0.0721]
[1734344187400,29.206,217.25,217.2,0.0721]
[1734344187707,9.206,217.25,217.2,0.0721]
[1734344190115,9.2046,217.29,217.21,12.57460746]
[1734344190696,9.2046,217.29,217.2,0.0721]
[1734344191223,9.52020596,217.33,217.2,0.0721]
[1734344191430,20.0,217.3,217.2,0.0721]
[1734344191602,20.0,217.3,217.21,13.26500929]
[1734344192125,20.0,217.3,217.2,36.42359146]
[1734344192509,20.0,217.3,217.21,13.26498125]
[1734344192832,20.0,217.3,217.21,0.69037379]
[1734344193404,9.52020596,217.33,217.23,12.57460746]
[1734344194138,9.52020596,217.33,217.23,1.5197]
[1734344194522,9.52020596,217.33,217.23,9.56845066]
[1734344195127,9.52020596,217.33,217.24,8.04875066]
[1734344195837,9.2025,217.33,217.25,8.04875066]
[1734344196048,9.2011,217.37,217.25,8.73898573]
[1734344196250,0.31770596,217.36,217.25,8.73898573]
[1734344196418,0.31770596,217.36,217.26,8.04875066]
[1734344197028,0.31770596,217.36,217.25,8.73898573]
[1734344198152,0.31770596,217.36,217.26,8.04875066]
[1734344199360,0.31770596,217.36,217.27,8.04875066]
[1734344199944,0.31770596,217.36,217.26,8.73892901]
[1734344200518,9.2011,217.37,217.27,8.04875066]
[1734344200720,0.31770596,217.36,217.27,0.69016261]
[1734344200922,0.31770596,217.36,217.23,1.5197]
[1734344200923,20.0,217.34,217.23,1.5197]
[1734344201144,0.31770596,217.33,217.23,1.5197]
[1734344202116,0.31770596,217.33,217.23,9.56845066]
[1734344203635,0.31770596,217.33,217.24,8.04875066]
[1734344204327,0.31770596,217.33,217.23,9.56845066]
[1734344206734,0.31770596,217.33,217.23,1.5197]
[1734344206956,0.31770596,217.33,217.24,8.04875066]
[1734344207854,0.31770596,217.33,217.25,8.04875066]
[1734344208319,0.31770596,217.33,217.23,9.56845066]
[1734344208527,0.31770596,217.33,217.23,1.5197]
[1734344209749,9.203,217.32,217.23,9.56845066]
[1734344209960,0.31770596,217.31,217.23,9.56845066]
[1734344210744,0.31770596,217.31,217.23,1.5197]
[1734344210949,0.31770596,217.31,217.23,9.56845066]
[1734344211339,0.31770596,217.31,217.24,8.04875066]
[1734344217075,9.203,217.32,217.23,1.5197]
[1734344217247,9.203,217.32,217.25,8.04875066]
[1734344217450,20.0,217.33,217.26,8.04875066]
[1734344217778,32.59417521,217.37,217.23,2.21007056]
[1734344217779,16.61439356,217.38,217.3,8.04875066]
[1734344217976,9.2005,217.38,217.31,8.04875066]
[1734344218268,9.2005,217.38,217.32,8.04875066]
[1734344218943,6.5655,217.39,217.32,8.04875066]
[1734344219278,9.51690596,217.41,217.33,8.04875066]
[1734344219971,9.51690596,217.41,217.3,23.776884]
[1734344220174,9.51690596,217.41,217.32,8.04875066]
[1734344220467,9.1992,217.41,217.32,8.04875066]
[1734344220689,7.0961876,217.43,217.37,8.04875066]
[1734344220841,9.1975,217.45,217.38,8.04875066]
[1734344222575,0.31770596,217.48,217.39,8.04875066]
[1734344223078,0.31770596,217.48,217.36,0.68981208]
[1734344223242,0.31770596,217.48,217.37,8.04875066]
[1734344223447,9.1966,217.47,217.37,8.04875066]
[1734344223648,9.1966,217.47,217.37,8.73866308]
[1734344223971,9.1966,217.47,217.38,8.04875066]
[1734344224368,9.1966,217.47,217.39,8.04875066]
[1734344225587,0.31770596,217.53,217.45,8.04875066]
[1734344225874,6.2825,217.54,217.45,8.04875066]
[1734344225875,6.60020596,217.54,217.45,8.04875066]
[1734344226083,6.60020596,217.54,217.42,1.6404]
[1734344226084,9.51180596,217.53,217.42,1.6404]
[1734344227082,9.51180596,217.53,217.42,9.68915066]
[1734344227292,9.51180596,217.53,217.43,8.04875066]
[1734344228186,9.51180596,217.53,217.42,2.33012009]
[1734344228187,9.51180596,217.53,217.42,9.68915066]
[1734344228687,9.51180596,217.53,217.42,1.6404]
[1734344229887,0.12549,217.52,217.37,2.23418103]
[1734344230192,0.12549,217.52,217.31,125.12175936]
[1734344230193,0.12549,217.49,217.33,1.6189]
[1734344230364,0.44319596,217.49,217.34,8.04875066]
[1734344230884,0.44319596,217.49,217.35,8.04875066]
[1734344231067,0.44319596,217.49,217.36,8.04875066]
[1734344231377,0.44319596,217.49,217.33,1.6189]
[1734344231378,9.1962,217.48,217.39,8.04875066]
[1734344231691,0.31770596,217.47,217.34,20.0]
[1734344231854,0.31770596,217.47,217.35,8.04875066]
[1734344232050,0.31770596,217.47,217.35,12.56187519]
[1734344232278,6.2043,217.46,217.33,14.18077519]
[1734344232479,0.31770596,217.45,217.33,14.18077519]
[1734344233157,0.31770596,217.45,217.34,12.56187519]
[1734344233380,20.0,217.41,217.26,9.64861732]
[1734344233565,0.31770596,217.4,217.3,12.56187519]
[1734344234579,0.31770596,217.4,217.31,12.56187519]
[1734344235986,0.31770596,217.4,217.3,12.56187519]
[1734344236786,0.31770596,217.4,217.31,12.56187519]
[1734344236970,1.24480596,217.4,217.31,12.56187519]
[1734344237165,1.24480596,217.4,217.29,20.0]
[1734344237166,1.24480596,217.4,217.3,12.56187519]
[1734344238079,9.2,217.39,217.29,12.56187519]
[1734344238263,0.31770596,217.38,217.3,12.56187519]
[1734344238683,0.9271,217.4,217.32,12.56187519]
[1734344238979,9.1987,217.43,217.35,12.56187519]
[1734344239198,9.1987,217.43,217.36,12.56187519]
[1734344239405,0.31770596,217.42,217.35,12.56187519]
[1734344239772,0.31770596,217.42,217.36,12.56187519]
[1734344239973,9.1987,217.43,217.36,12.56187519]
[1734344240696,9.1987,217.43,217.37,12.56187519]
[1734344240894,9.1987,217.43,217.36,12.56187519]
[1734344241769,0.31770596,217.42,217.35,12.56187519]
[1734344241964,9.1992,217.41,217.33,12.56187519]
[1734344242200,0.31770596,217.4,217.32,12.56187519]
[1734344243314,9.2,217.39,217.29,12.56187519]
[1734344243467,9.2,217.39,217.26,1.6086]
[1734344243468,6.49300596,217.38,217.27,12.56187519]
[1734344243665,6.49300596,217.38,217.26,12.56187519]
[1734344244274,6.49300596,217.38,217.28,12.56187519]
[1734344244483,6.49300596,217.38,217.21,0.69024289]
[1734344244484,6.49300596,217.38,217.27,12.56187519]
[1734344244778,29.202,217.35,217.27,12.56187519]
[1734344244985,0.31770596,217.34,217.27,12.56187519]
[1734344246511,0.31770596,217.34,217.26,12.56187519]
[1734344246882,0.31770596,217.34,217.27,12.56187519]
[1734344247478,9.202,217.35,217.29,12.56187519]
[1734344247804,0.31770596,217.37,217.3,12.56187519]
[1734344248586,6.49300596,217.38,217.31,12.56187519]
[1734344248780,6.1753,217.38,217.33,12.56187519]
[1734344249085,6.49300596,217.38,217.31,12.56187519]
[1734344249291,9.2009,217.37,217.29,12.56187519]
[1734344249493,0.31770596,217.36,217.27,12.56187519]
[1734344250177,0.31770596,217.36,217.28,12.56187519]
[1734344250482,0.31770596,217.36,217.27,12.56187519]
[1734344251103,9.2017,217.35,217.27,12.56187519]
[1734344251297,0.31770596,217.34,217.27,12.56187519]
[1734344252195,0.31770596,217.34,217.28,12.56187519]
[1734344253109,0.31770596,217.37,217.31,12.56187519]
[1734344253513,0.31770596,217.37,217.3,12.56187519]
[1734344254286,0.31770596,217.37,217.31,12.56187519]
[1734344254928,6.49300596,217.38,217.32,12.56187519]
[1734344255487,6.49300596,217.38,217.31,12.56187519]
[1734344255830,9.2009,217.37,217.3,12.56187519]
[1734344255988,0.31770596,217.36,217.3,12.56187519]
[1734344256785,9.2017,217.35,217.28,12.56187519]
[1734344257101,0.31770596,217.34,217.28,12.56187519]
[1734344258000,9.2017,217.35,217.29,12.56187519]
[1734344258695,0.31770596,217.34,217.29,12.56187519]
[1734344258897,0.31770596,217.34,217.27,12.56187519]
[1734344259121,9.2025,217.33,217.25,12.56187519]
[1734344259318,0.31770596,217.32,217.24,12.56187519]
[1734344259998,0.31770596,217.32,217.24,8.04768027]
[1734344260416,15.4663,217.31,217.2,0.0721]
[1734344260594,20.0,217.28,217.2,0.0721]
[1734344260807,1.24480596,217.27,217.2,0.0721]
[1734344261614,9.2055,217.26,217.2,0.0721]
[1734344261820,0.31770596,217.25,217.2,0.0721]
[1734344262209,0.9271,217.27,217.21,12.58229005]
[1734344262210,1.24480596,217.27,217.21,12.58229005]
[1734344262414,20.31770596,217.27,217.22,12.58229005]
[1734344263114,0.31770596,217.27,217.22,12.58229005]
[1734344263316,9.2042,217.3,217.22,12.58229005]
[1734344263317,0.31770596,217.29,217.22,12.58229005]
[1734344264428,0.31770596,217.29,217.23,12.58229005]
[1734344265316,0.31770596,217.29,217.24,12.58229005]
[1734344265624,0.31770596,217.3,217.24,12.58229005]
[1734344266013,0.31770596,217.3,217.22,12.58229005]
[1734344266198,0.31770596,217.3,217.23,12.58229005]
[1734344266404,6.2629,217.31,217.24,12.58229005]
[1734344266634,0.31770596,217.34,217.27,12.58229005]
[1734344266835,0.31770596,217.34,217.23,1.546]
[1734344266836,0.31770596,217.34,217.28,12.58229005]
[1734344267139,0.31770596,217.34,217.25,12.58229005]
[1734344267717,0.31770596,217.34,217.23,1.546]
[1734344267718,0.31770596,217.34,217.26,12.58229005]
[1734344267912,0.31770596,217.34,217.27,12.58229005]
[1734344269134,0.31770596,217.37,217.29,12.58229005]
[1734344269741,6.97190596,217.38,217.29,12.58229005]
[1734344270035,6.97190596,217.38,217.3,12.58229005]
[1734344271647,9.2009,217.37,217.28,12.58229005]
[1734344271940,0.31770596,217.36,217.27,12.58229005]
[1734344272118,0.31770596,217.36,217.26,12.58229005]
[1734344274247,0.31770596,217.36,217.27,12.58229005]
[1734344274449,8.2734662,217.37,217.27,12.58229005]
[1734344279422,8.2734662,217.37,217.23,2.23614994]
[1734344279423,8.2734662,217.37,217.28,12.58229005]
[1734344279626,8.2734662,217.37,217.27,12.58229005]
[1734344279839,8.2734662,217.37,217.24,0.12549]
[1734344279840,9.2017,217.35,217.23,2.23614994]
[1734344280015,9.2017,217.35,217.26,12.58229005]
[1734344281020,9.2017,217.35,217.27,12.58229005]
[1734344281425,9.2017,217.35,217.26,12.58229005]
[1734344282053,9.2025,217.33,217.21,12.58229005]
[1734344282227,0.9271,217.31,217.2,12.65439005]
[1734344282746,0.9271,217.31,217.21,12.58229005]
[1734344283643,9.2038,217.3,217.21,12.58229005]
[1734344284018,9.2038,217.3,217.21,8.05005538]
[1734344284646,9.2038,217.3,217.2,0.0721]
[1734344284826,9.2038,217.3,217.21,8.05005538]
[1734344285263,9.2047,217.28,217.2,0.0721]
[1734344285464,20.0,217.25,217.2,0.0721]
[1734344286754,20.0,217.26,217.2,0.0721]
[1734344286952,20.0,217.25,217.2,0.0721]
[1734344287780,24.027864,217.24,217.2,0.0721]
[1734344288866,9.2068,217.23,217.2,0.0721]
[1734344290445,20.12549,217.2,217.08,1.5262]
[1734344290661,6.5866,217.19,217.08,1.5262]
[1734344290844,6.5866,217.19,217.09,8.05005538]
[1734344291049,6.5866,217.19,217.1,8.05005538]
[1734344291558,20.12549,217.2,217.08,1.5262]
[1734344291559,9.2068,217.23,217.15,8.05005538]
[1734344292181,9.2068,217.23,217.14,8.05005538]
[1734344293583,9.2068,217.23,217.15,8.05005538]
[1734344293944,9.2068,217.23,217.15,12.58468207]
[1734344294987,9.2068,217.23,217.16,12.58468207]
[1734344295149,9.2068,217.23,217.14,12.58468207]
[1734344299256,9.2068,217.23,217.12,12.58468207]
[1734344299454,9.2076,217.21,217.12,12.58468207]
[1734344299862,9.2076,217.21,217.11,12.58468207]
[1734344300994,9.2076,217.21,217.1,12.58468207]
[1734344301687,20.0,217.18,217.08,1.5262]
[1734344302063,20.0,217.18,217.08,14.11088207]
[1734344302262,20.0,217.18,217.08,1.5262]
[1734344302495,9.2076,217.21,217.11,12.58468207]
[1734344302869,9.2076,217.21,217.11,11.21143207]
[1734344303064,9.2076,217.21,217.08,2.21701533]
[1734344303065,9.2076,217.21,217.12,12.58468207]
[1734344304074,20.0,217.22,217.08,2.21701533]
[1734344304268,33.108774,217.24,217.12,12.58468207]
[1734344304661,9.2064,217.24,217.14,12.58468207]
[1734344304886,9.2064,217.24,217.15,12.58468207]
[1734344305695,9.2064,217.24,217.16,12.58468207]
[1734344305988,6.5866,217.25,217.17,12.58468207]
[1734344306831,6.5866,217.25,217.16,12.58468207]
[1734344307319,9.2064,217.24,217.12,12.58468207]
[1734344307521,9.2064,217.24,217.13,12.58468207]
[1734344307893,9.2064,217.24,217.14,12.58468207]
[1734344309306,9.2064,217.24,217.13,12.58468207]
[1734344309497,6.5866,217.25,217.09,0.69067175]
[1734344309498,9.2072,217.22,217.11,12.58468207]
[1734344310706,20.0,217.17,217.08,1.5262]
[1734344311030,20.0,217.17,217.07,0.547218]
[1734344311031,7.0183,217.16,217.07,0.547218]
[1734344311238,20.0,217.13,217.07,0.547218]
[1734344311394,0.12549,217.15,217.07,0.547218]
[1734344311596,20.0,217.13,217.07,0.547218]
[1734344312698,53.239264,217.12,217.07,0.547218]
[1734344312933,33.113774,217.12,217.07,0.547218]
[1734344313117,9.2114,217.12,217.07,0.547218]
[1734344314601,18.93645389,217.16,217.07,0.547218]
[1734344314803,6.0912,217.16,217.09,12.58468207]
[1734344315033,7.4925,217.21,217.12,12.58468207]
[1734344315199,7.4925,217.21,217.11,12.58468207]
[1734344315406,7.4925,217.21,217.1,12.58468207]
[1734344315714,7.4925,217.21,217.09,12.58468207]
[1734344315910,7.4925,217.21,217.11,12.58468207]
[1734344316299,9.2083,217.2,217.11,12.58468207]
[1734344317225,9.2083,217.2,217.12,12.58468207]
[1734344317414,9.2083,217.2,217.11,12.58468207]
[1734344317730,9.2083,217.2,217.13,12.58468207]
[1734344317910,9.2083,217.2,217.08,0.81628949]
[1734344318114,9.2083,217.2,217.12,12.58468207]
[1734344318998,6.5654,217.21,217.14,12.58468207]
[1734344319243,20.0,217.21,217.14,12.58468207]
[1734344319414,20.0,217.21,217.15,12.58468207]
[1734344320024,9.2067,217.24,217.16,12.58468207]
[1734344320226,9.2067,217.24,217.15,12.58468207]
[1734344321040,9.2067,217.24,217.14,12.58468207]
[1734344321609,9.2067,217.24,217.13,12.58468207]
[1734344322343,9.2067,217.24,217.14,12.58468207]
[1734344322853,9.2067,217.24,217.13,12.58468207]
[1734344324121,20.0,217.21,217.11,12.58468207]
[1734344324321,29.2077,217.21,217.11,12.58468207]
[1734344324735,0.12549,217.2,217.1,12.58468207]
[1734344324957,23.902374,217.2,217.07,0.547218]
[1734344325130,23.902374,217.2,217.07,13.13190007]
[1734344325341,23.902374,217.2,217.08,12.58468207]
[1734344325947,9.2085,217.19,217.08,12.58468207]
[1734344327254,6.0997,217.18,217.07,13.13190007]
[1734344327619,9.2093,217.17,217.07,13.13190007]
[1734344327949,9.2093,217.17,217.07,0.547218]
[1734344328249,23.902374,217.16,217.07,0.547218]
[1734344328944,10.1364,217.17,217.07,13.13190007]
[1734344329453,10.1364,217.17,217.08,12.58468207]
[1734344331842,23.902374,217.16,217.07,0.547218]
[1734344332037,9.2102,217.15,217.07,0.547218]
[1734344334250,23.902374,217.14,217.07,0.547218]
[1734344334557,9.2102,217.15,217.07,0.547218]
[1734344340335,8.4262,217.15,217.07,8.60848534]
[1734344340649,8.4262,217.15,217.09,8.06126734]
[1734344341037,8.4262,217.15,217.08,8.06126734]
[1734344341637,0.9271,217.17,217.1,8.06126734]
[1734344343963,9.2075,217.22,217.13,8.06126734]
[1734344344177,9.2075,217.22,217.15,8.06126734]
[1734344344551,7.5758,217.23,217.15,8.06126734]
[1734344344747,7.5758,217.23,217.1,1.5022]
[1734344344748,7.5758,217.23,217.14,8.06126734]
[1734344344959,7.5758,217.23,217.15,8.06126734]
[1734344345746,6.6487,217.23,217.17,8.06126734]
[1734344346069,6.6487,217.23,217.16,8.06126734]